bitfinex/quotes_BTCUSD_20250814
["timestamp","ask_amount","ask_price","bid_price","bid_amount"]
[1755172642141,0.03099,120880.0,120870.0,0.12605271]
[1755172642917,0.03199,120880.0,120870.0,0.12605271]
[1755172643583,0.03199,120880.0,120870.0,0.14693031]
[1755172643981,0.03199,120880.0,120870.0,0.34529031]
[1755172644348,0.03199,120880.0,120870.0,0.32441271]
[1755172645844,0.03199,120880.0,120870.0,0.19845271]
[1755172646050,0.03199,120880.0,120870.0,0.32437271]
[1755172646259,0.03199,120880.0,120870.0,0.19845271]
[1755172646382,0.03199,120880.0,120870.0,0.32437271]
[1755172646745,0.03199,120880.0,120870.0,0.36508231]
[1755172647085,0.03199,120880.0,120870.0,0.32437271]
[1755172649271,0.04744854,120880.0,120870.0,0.32437271]
[1755172650276,0.01948854,120880.0,120870.0,0.20050271]
[1755172650514,0.01948854,120880.0,120870.0,0.32642271]
[1755172651071,0.01848854,120880.0,120870.0,0.32642271]
[1755172651247,0.01748854,120880.0,120870.0,0.32642271]
[1755172651407,0.01748854,120880.0,120870.0,0.36763831]
[1755172652000,0.01748854,120880.0,120870.0,0.37064831]
[1755172653742,0.01748854,120880.0,120870.0,0.24472831]
[1755172653968,0.01748854,120880.0,120870.0,0.36763831]
[1755172655868,0.01748854,120880.0,120870.0,0.37064831]
[1755172657896,0.01545854,120880.0,120870.0,0.37064831]
[1755172660103,0.01545854,120880.0,120870.0,0.32943271]
[1755172660310,0.01548239,120880.0,120870.0,0.28623596]
[1755172660518,0.01548216,120880.0,120870.0,0.41215596]
[1755172660955,0.01548216,120880.0,120870.0,0.28623596]
[1755172661210,0.01758216,120880.0,120870.0,0.41215596]
[1755172661640,0.01758216,120880.0,120870.0,0.45585206]
[1755172662050,0.01548216,120880.0,120870.0,0.45585206]
[1755172664109,0.01548216,120880.0,120870.0,0.32993206]
[1755172664230,0.01548216,120880.0,120870.0,0.45585206]
[1755172665260,0.01548093,120880.0,120870.0,0.45585206]
[1755172665461,1.54793993,120900.0,120870.0,0.45585206]
[1755172665666,1.52685574,120900.0,120870.0,0.45585206]
[1755172666091,0.0031,120890.0,120870.0,0.45585206]
[1755172666294,0.01858074,120890.0,120870.0,0.45585206]
[1755172667001,0.01858074,120890.0,120880.0,0.12588]
[1755172667188,0.02068074,120890.0,120880.0,0.14128943]
[1755172668674,0.02168074,120890.0,120880.0,0.14128943]
[1755172668846,0.02268074,120890.0,120880.0,0.14128943]
[1755172669054,0.01958074,120890.0,120880.0,0.14128943]
[1755172669212,0.01958102,120890.0,120880.0,0.14128943]
[1755172669841,0.01958102,120890.0,120880.0,0.14329943]
[1755172670007,0.01958102,120890.0,120880.0,0.14647943]
[1755172670363,0.0041,120890.0,120880.0,0.14647943]
[1755172670563,0.0041,120890.0,120880.0,0.14329943]
[1755172670735,0.0041,120890.0,120880.0,0.14647943]
[1755172670942,0.002,120890.0,120880.0,0.14647943]
[1755172671759,0.0041,120890.0,120880.0,0.14329943]
[1755172671968,0.0041,120890.0,120880.0,0.14128943]
[1755172672971,0.0031,120890.0,120880.0,0.14128943]
[1755172673172,0.0031,120890.0,120880.0,0.14329943]
[1755172673471,0.0021,120890.0,120880.0,0.14329943]
[1755172673888,0.0021,120890.0,120880.0,0.14128943]
[1755172674219,0.0021,120890.0,120880.0,0.14329943]
[1755172674954,0.0021,120890.0,120880.0,0.14647943]
[1755172675591,0.0021,120890.0,120880.0,0.01540943]
[1755172675794,0.0021,120890.0,120880.0,0.12588]
[1755172675795,0.49506792,120890.0,120880.0,0.12588]
[1755172676440,0.0052,120890.0,120880.0,0.12588]
[1755172676644,0.0052,120890.0,120870.0,0.20163271]
[1755172676852,0.0052,120890.0,120880.0,0.12588]
[1755172677058,0.0021,120890.0,120880.0,0.12588]
[1755172677625,0.0021,120890.0,120880.0,0.12789]
[1755172678912,0.0021,120890.0,120880.0,0.12588]
[1755172680308,0.0052,120890.0,120880.0,0.12588]
[1755172682209,0.0021,120890.0,120880.0,0.12588]
[1755172682396,0.0021,120890.0,120880.0,0.12789]
[1755172682596,0.0021,120890.0,120880.0,0.13107]
[1755172683005,0.0021,120890.0,120880.0,0.12789]
[1755172685758,0.0021,120890.0,120880.0,0.13107]
[1755172690286,0.0021,120890.0,120880.0,0.13313816]
[1755172690697,2.00124293,120900.0,120880.0,0.13313816]
[1755172691862,2.00124293,120900.0,120890.0,0.19832]
[1755172692062,2.00337293,120900.0,120890.0,0.19832]
[1755172693319,1.51350501,120900.0,120890.0,0.19832]
[1755172693521,1.51450501,120900.0,120890.0,0.19832]
[1755172693721,1.51550501,120900.0,120890.0,0.19832]
[1755172693949,1.51550501,120900.0,120890.0,0.3242]
[1755172694349,2.00227293,120900.0,120890.0,0.3242]
[1755172694715,2.00530293,120900.0,120890.0,0.3242]
[1755172694919,2.1707289,120900.0,120890.0,0.32424]
[1755172695329,2.00530293,120900.0,120890.0,0.19832]
[1755172695531,2.00530293,120900.0,120890.0,0.32424]
[1755172695939,1.51543501,120900.0,120890.0,0.32424]
[1755172696154,2.00530293,120900.0,120890.0,0.32424]
[1755172697036,1.51543501,120900.0,120890.0,0.32424]
[1755172697242,2.00530293,120900.0,120890.0,0.32424]
[1755172698590,2.00227293,120900.0,120890.0,0.32424]
[1755172699494,2.00227293,120900.0,120890.0,0.32945]
[1755172701422,2.00227293,120900.0,120890.0,0.32424]
[1755172702858,2.00227293,120900.0,120890.0,0.3264]
[1755172703466,2.00227293,120900.0,120890.0,0.32424]
[1755172703671,2.00530293,120900.0,120890.0,0.32424]
[1755172703889,1.51543501,120900.0,120890.0,0.32424]
[1755172704101,2.00530293,120900.0,120890.0,0.32424]
[1755172707151,1.51543501,120900.0,120890.0,0.32424]
[1755172707464,2.00530293,120900.0,120890.0,0.32424]
[1755172708150,2.00227293,120900.0,120890.0,0.32424]
[1755172714204,2.00227293,120900.0,120890.0,0.3264]
[1755172714205,1.51240501,120900.0,120890.0,0.3264]
[1755172716446,1.50433,120900.0,120890.0,0.3264]
[1755172716627,1.50433,120900.0,120890.0,0.32959]
[1755172719302,1.50433,120900.0,120890.0,0.3264]
[1755172722080,1.50433,120900.0,120880.0,0.024805]
[1755172722081,2.16198956,120900.0,120880.0,0.024805]
[1755172722442,0.48942188,120890.0,120870.0,0.00328271]
[1755172722645,0.00205,120890.0,120880.0,0.20039]
[1755172722767,2.07737513,120900.0,120880.0,0.32627]
[1755172722985,2.07537513,120900.0,120880.0,0.32946]
[1755172723215,2.32328591,120900.0,120880.0,0.20358]
[1755172723391,2.32328591,120900.0,120890.0,0.12584]
[1755172723603,2.15990956,120900.0,120880.0,0.20151]
[1755172723809,2.15990956,120900.0,120890.0,0.12584]
[1755172725081,1.50225,120900.0,120890.0,0.12791]
[1755172725471,1.66767597,120900.0,120890.0,0.12791]
[1755172725707,1.66767597,120900.0,120890.0,0.12584]
[1755172726076,1.50325,120900.0,120880.0,0.20151]
[1755172726419,1.50425,120900.0,120890.0,0.12584]
[1755172726639,1.50425,120900.0,120880.0,0.20151]
[1755172726828,1.50425,120900.0,120890.0,0.12584]
[1755172727035,1.50225,120900.0,120890.0,0.12584]
[1755172728882,1.55354263,120900.0,120890.0,0.12584]
[1755172729005,1.50325,120900.0,120890.0,0.1311]
[1755172729422,1.50425,120900.0,120890.0,0.1311]
[1755172731846,1.50425,120900.0,120890.0,0.12791]
[1755172732763,1.66967669,120900.0,120880.0,0.20151]
[1755172733009,1.99670188,120900.0,120890.0,0.12584]
[1755172733213,1.50728,120900.0,120890.0,0.12584]
[1755172733424,1.99670188,120900.0,120890.0,0.12584]
[1755172733643,1.99367188,120900.0,120890.0,0.12791]
[1755172733863,1.5012,120900.0,120890.0,0.1311]
[1755172734492,1.5002,120900.0,120890.0,0.1311]
[1755172735000,1.50225,120900.0,120890.0,0.1311]
[1755172735186,1.50325,120900.0,120890.0,0.1311]
[1755172735482,1.50425,120900.0,120890.0,0.1311]
[1755172736666,1.50425,120900.0,120890.0,0.12791]
[1755172737991,1.99670188,120900.0,120880.0,0.20151]
[1755172738201,1.99670188,120900.0,120890.0,0.12584]
[1755172738394,2.16212785,120900.0,120890.0,0.12584]
[1755172738899,1.99570188,120900.0,120890.0,0.12584]
[1755172739109,1.50325,120900.0,120890.0,0.12584]
[1755172739706,1.50225,120900.0,120890.0,0.12584]
[1755172740642,1.50225,120900.0,120890.0,0.32416]
[1755172740843,1.50225,120900.0,120890.0,0.32942]
[1755172741275,1.50425,120900.0,120890.0,0.32942]
[1755172741478,1.50425,120900.0,120890.0,0.32623]
[1755172742641,1.50728,120900.0,120890.0,0.32416]
[1755172744860,2.16212785,120900.0,120890.0,0.19832]
[1755172745072,2.16212785,120900.0,120890.0,0.32416]
[1755172745486,2.16212785,120900.0,120890.0,0.19832]
[1755172745697,2.16212785,120900.0,120890.0,0.32416]
[1755172746967,1.79666824,120900.0,120890.0,0.32416]
[1755172747216,2.36857455,120900.0,120890.0,0.32416]
[1755172747421,1.63860125,120900.0,120890.0,0.32416]
[1755172747629,1.61379325,120900.0,120890.0,0.32416]
[1755172747842,1.77921922,120900.0,120890.0,0.32416]
[1755172748476,1.61379325,120900.0,120890.0,0.32416]
[1755172749081,1.77921922,120900.0,120890.0,0.32416]
[1755172749683,1.86170365,120900.0,120890.0,0.32416]
[1755172749880,1.77921922,120900.0,120890.0,0.32416]
[1755172750564,1.80402622,120900.0,120890.0,0.32416]
[1755172751876,1.63860025,120900.0,120890.0,0.32416]
[1755172758641,1.33860025,120900.0,120890.0,0.32416]
[1755172758970,1.33860025,120900.0,120890.0,0.19832]
[1755172759182,1.82802213,120900.0,120890.0,0.32416]
[1755172759387,1.33860025,120900.0,120890.0,0.32416]
[1755172759997,1.33860025,120900.0,120890.0,0.19832]
[1755172760142,1.31178025,120900.0,120890.0,0.32412]
[1755172760345,1.20425,120900.0,120890.0,0.32617]
[1755172763756,1.20425,120900.0,120890.0,0.32412]
[1755172767530,1.20425,120900.0,120890.0,0.32617]
[1755172768188,1.2022,120900.0,120890.0,0.3291]
[1755172769936,1.20432,120900.0,120890.0,0.32617]
[1755172770118,1.20432,120900.0,120890.0,0.3291]
[1755172772575,1.2022,120900.0,120890.0,0.3291]
[1755172776345,1.20377,120900.0,120890.0,0.3291]
[1755172778967,1.85861785,120900.0,120890.0,0.19832]
[1755172779219,1.92622,120900.0,120890.0,0.32412]
[1755172780739,1.86178785,120900.0,120890.0,0.19832]
[1755172780954,1.86178785,120900.0,120890.0,0.32412]
[1755172781624,1.37236597,120900.0,120890.0,0.32412]
[1755172781846,1.86178785,120900.0,120890.0,0.32412]
[1755172783935,1.37236597,120900.0,120890.0,0.32412]
[1755172784156,1.86178785,120900.0,120890.0,0.32412]
[1755172787252,1.94427228,120900.0,120890.0,0.32412]
[1755172788413,1.86178785,120900.0,120890.0,0.32412]
[1755172788965,1.86178785,120900.0,120890.0,0.19832]
[1755172789170,1.86178785,120900.0,120890.0,0.32412]
[1755172792024,1.37236597,120900.0,120890.0,0.32412]
[1755172792237,1.85861785,120900.0,120890.0,0.32412]
[1755172795323,1.85861785,120900.0,120890.0,0.32611]
[1755172795557,1.75861785,120900.0,120890.0,0.32611]
[1755172796639,1.76178785,120900.0,120890.0,0.32412]
[1755172797255,1.59636188,120900.0,120890.0,0.32412]
[1755172797458,1.1022,120900.0,120890.0,0.20355]
[1755172797699,1.1022,120900.0,120890.0,0.32931]
[1755172801994,1.10431,120900.0,120890.0,0.20355]
[1755172802198,1.10431,120900.0,120890.0,0.32607]
[1755172802397,1.59373188,120900.0,120890.0,0.32607]
[1755172802845,1.10431,120900.0,120890.0,0.32607]
[1755172803641,1.10431,120900.0,120890.0,0.20031]
[1755172803865,1.10431,120900.0,120890.0,0.32607]
[1755172804082,1.18679443,120900.0,120890.0,0.32607]
[1755172804322,1.10431,120900.0,120890.0,0.32607]
[1755172804493,1.27290597,120900.0,120890.0,0.19832]
[1755172804703,1.27290597,120900.0,120890.0,0.32408]
[1755172805475,1.76232785,120900.0,120890.0,0.32408]
[1755172806022,1.59690188,120900.0,120890.0,0.32408]
[1755172806435,1.76232785,120900.0,120890.0,0.32408]
[1755172806651,1.84481228,120900.0,120890.0,0.19832]
[1755172806858,1.67938631,120900.0,120890.0,0.32408]
[1755172807065,1.59373188,120900.0,120890.0,0.19832]
[1755172807279,1.59373188,120900.0,120890.0,0.3261]
[1755172807485,1.10431,120900.0,120890.0,0.3261]
[1755172807681,1.10431,120900.0,120890.0,0.20034]
[1755172807916,1.10431,120900.0,120890.0,0.3261]
[1755172808215,1.10431,120900.0,120890.0,0.20034]
[1755172808425,1.10431,120900.0,120890.0,0.3261]
[1755172809953,1.10431,120900.0,120890.0,0.32408]
[1755172810157,1.10734,120900.0,120890.0,0.32408]
[1755172810510,1.27276597,120900.0,120890.0,0.32408]
[1755172811627,1.78699285,120900.0,120890.0,0.32408]
[1755172812098,0.15796039,120890.0,120880.0,0.19832]
[1755172812305,1.07525552,120890.0,120880.0,0.32408]
[1755172812518,1.1163575,120890.0,120880.0,0.32408]
[1755172812719,1.20738763,120890.0,120880.0,0.19832]
[1755172812928,1.17422584,120890.0,120880.0,0.32408]
[1755172813147,1.14093554,120890.0,120880.0,0.32408]
[1755172813354,1.14184097,120890.0,120880.0,0.32408]
[1755172813559,1.14184097,120890.0,120880.0,0.19832]
[1755172813764,1.14084097,120890.0,120880.0,0.32408]
[1755172813936,1.14284097,120890.0,120880.0,0.32408]
[1755172814342,1.14184097,120890.0,120880.0,0.32408]
[1755172814560,1.14484097,120890.0,120880.0,0.32408]
[1755172814768,1.14374492,120890.0,120880.0,0.32408]
[1755172814965,1.14274492,120890.0,120880.0,0.19832]
[1755172815170,1.1604269,120890.0,120880.0,0.32408]
[1755172815409,1.14474492,120890.0,120880.0,0.32408]
[1755172815845,0.65532304,120890.0,120880.0,0.32408]
[1755172816059,1.14474492,120890.0,120880.0,0.32408]
[1755172816652,1.14474492,120890.0,120880.0,0.19832]
[1755172816870,1.14474492,120890.0,120880.0,0.32408]
[1755172817273,1.1624269,120890.0,120880.0,0.32408]
[1755172818184,1.24491133,120890.0,120880.0,0.32408]
[1755172818801,0.67300502,120890.0,120880.0,0.32408]
[1755172819079,1.1624269,120890.0,120880.0,0.19832]
[1755172819310,0.11465425,120890.0,120880.0,0.20034]
[1755172819550,0.11253425,120890.0,120880.0,0.32915]
[1755172819753,0.94195613,120890.0,120880.0,0.32915]
[1755172819954,1.10951578,120890.0,120880.0,0.32915]
[1755172820332,1.10451578,120890.0,120880.0,0.3261]
[1755172820620,1.10551578,120890.0,120880.0,0.20034]
[1755172820820,1.10651578,120890.0,120880.0,0.3261]
[1755172821025,1.10651578,120890.0,120880.0,0.20034]
[1755172821207,1.10651578,120890.0,120880.0,0.3261]
[1755172822337,1.18900021,120890.0,120880.0,0.32408]
[1755172822558,1.10651578,120890.0,120880.0,0.32408]
[1755172823992,0.6170939,120890.0,120880.0,0.32408]
[1755172824209,1.10651578,120890.0,120880.0,0.32408]
[1755172825061,1.10954578,120890.0,120880.0,0.32408]
[1755172826284,1.10954578,120890.0,120880.0,0.19832]
[1755172826500,1.10954578,120890.0,120880.0,0.32408]
[1755172826720,1.10651578,120890.0,120880.0,0.32408]
[1755172827461,0.94107613,120890.0,120880.0,0.20034]
[1755172827670,1.10651578,120890.0,120880.0,0.32915]
[1755172827880,0.94107613,120890.0,120880.0,0.32915]
[1755172828082,0.6170939,120890.0,120880.0,0.32915]
[1755172828324,1.10651578,120890.0,120880.0,0.32915]
[1755172828532,0.94107613,120890.0,120880.0,0.32915]
[1755172828738,1.10651578,120890.0,120880.0,0.32915]
[1755172828943,0.94107613,120890.0,120880.0,0.32915]
[1755172829147,0.94068433,120890.0,120880.0,0.36207427]
[1755172829382,0.94068433,120890.0,120880.0,0.35902427]
[1755172829595,1.10612398,120890.0,120880.0,0.35902427]
[1755172829823,1.10612398,120890.0,120880.0,0.23326427]
[1755172830035,1.10612398,120890.0,120880.0,0.3261]
[1755172830905,0.11126245,120890.0,120880.0,0.32915]
[1755172831120,0.10914245,120890.0,120880.0,0.32915]
[1755172831713,0.10914245,120890.0,120880.0,0.32927]
[1755172831714,0.002,120890.0,120880.0,0.32927]
[1755172833465,0.001,120890.0,120880.0,0.32927]
[1755172833904,1.77985506,120900.0,120880.0,0.32927]
[1755172834109,1.69715213,120900.0,120880.0,0.32927]
[1755172834321,0.001,120890.0,120880.0,0.32927]
[1755172834528,0.001,120890.0,120880.0,0.20339]
[1755172834775,0.001,120890.0,120880.0,0.32923]
[1755172834963,1.7238794,120900.0,120880.0,0.32923]
[1755172835136,1.69715213,120900.0,120880.0,0.32923]
[1755172835336,1.69815213,120900.0,120880.0,0.32923]
[1755172835544,1.69815213,120900.0,120880.0,0.20339]
[1755172835755,1.69715213,120900.0,120890.0,0.12584]
[1755172836090,1.69891213,120900.0,120890.0,0.12584]
[1755172836549,1.69891213,120900.0,120880.0,0.20137]
[1755172836761,1.69891213,120900.0,120890.0,0.1258]
[1755172837407,0.001,120890.0,120880.0,0.20137]
[1755172837618,0.001,120890.0,120880.0,0.20335]
[1755172837829,0.001,120890.0,120880.0,0.32915]
[1755172838048,1.69815213,120900.0,120880.0,0.32915]
[1755172838277,1.69815213,120900.0,120880.0,0.2003]
[1755172838569,1.20873025,120900.0,120890.0,0.12908]
[1755172838804,1.1002,120900.0,120890.0,0.13106]
[1755172839035,1.59144188,120900.0,120890.0,0.13106]
[1755172839251,1.59144188,120900.0,120890.0,0.12782]
[1755172839494,1.10202,120900.0,120890.0,0.12782]
[1755172839712,1.59144188,120900.0,120890.0,0.12782]
[1755172839986,1.59144188,120900.0,120890.0,0.13102]
[1755172841002,1.59344188,120900.0,120890.0,0.13102]
[1755172841231,1.59311265,120900.0,120890.0,0.13102]
[1755172841890,1.59311265,120900.0,120890.0,0.00522]
[1755172842121,1.59311265,120900.0,120890.0,0.13102]
[1755172842613,1.59311265,120900.0,120890.0,0.00522]
[1755172842825,1.59129265,120900.0,120890.0,0.00522]
[1755172843065,1.10187077,120900.0,120890.0,0.13102]
[1755172845175,1.26729674,120900.0,120890.0,0.13102]
[1755172846072,1.75671862,120900.0,120890.0,0.13102]
[1755172846694,1.75671862,120900.0,120890.0,0.12774]
[1755172846932,1.75886862,120900.0,120890.0,0.12576]
[1755172847358,1.26944674,120900.0,120880.0,0.20156]
[1755172847608,0.48942188,120890.0,120880.0,0.19832]
[1755172847821,0.49147188,120890.0,120880.0,0.32408]
[1755172848410,0.00205,120890.0,120880.0,0.32408]
[1755172848614,0.49147188,120890.0,120880.0,0.32408]
[1755172848819,0.49147188,120890.0,120880.0,0.2003]
[1755172849102,0.00205,120890.0,120880.0,0.32606]
[1755172849603,0.00205,120890.0,120880.0,0.3293]
[1755172849791,1.85529887,120900.0,120880.0,0.3293]
[1755172850028,1.9377833,120900.0,120880.0,0.3293]
[1755172850265,1.9377833,120900.0,120880.0,0.20354]
[1755172850499,1.44836142,120900.0,120880.0,0.20354]
[1755172850733,1.85429887,120900.0,120890.0,0.12576]
[1755172851766,1.85539887,120900.0,120890.0,0.12576]
[1755172851978,1.85639887,120900.0,120890.0,0.12576]
[1755172852203,1.85539887,120900.0,120890.0,0.12576]
[1755172852631,1.85639887,120900.0,120890.0,0.12576]
[1755172852835,1.85639887,120900.0,120880.0,0.20156]
[1755172853053,1.85639887,120900.0,120890.0,0.12576]
[1755172853274,1.85639887,120900.0,120880.0,0.20156]
[1755172853490,1.85639887,120900.0,120890.0,0.12576]
[1755172853986,1.85539887,120900.0,120890.0,0.12576]
[1755172854208,1.85439887,120900.0,120890.0,0.12576]
[1755172854658,1.85639887,120900.0,120890.0,0.12576]
[1755172855120,1.85539887,120900.0,120890.0,0.12576]
[1755172855373,1.85639887,120900.0,120890.0,0.12576]
[1755172864131,1.85639887,120900.0,120880.0,0.20156]
[1755172864564,1.20155102,120900.0,120890.0,0.12576]
[1755172864782,1.85639887,120900.0,120890.0,0.13098]
[1755172865001,1.85439887,120900.0,120890.0,0.00522]
[1755172865253,1.85439887,120900.0,120890.0,0.13098]
[1755172865493,1.85439887,120900.0,120890.0,0.12774]
[1755172865904,1.85639887,120900.0,120890.0,0.12774]
[1755172866531,1.85639887,120900.0,120890.0,0.00198]
[1755172866732,1.85639887,120900.0,120890.0,0.12576]
[1755172867273,1.85539887,120900.0,120890.0,0.12576]
[1755172867466,1.85639887,120900.0,120890.0,0.12576]
[1755172869273,1.85639887,120900.0,120890.0,0.32412]
[1755172870874,1.85639887,120900.0,120890.0,0.19836]
[1755172871073,1.85639887,120900.0,120890.0,0.32412]
[1755172871287,1.83159187,120900.0,120890.0,0.32412]
[1755172871739,1.6661659,120900.0,120890.0,0.32722]
[1755172871977,1.6661659,120900.0,120890.0,0.20146]
[1755172872168,1.83159187,120900.0,120890.0,0.20146]
[1755172872635,1.83159187,120900.0,120890.0,0.32722]
[1755172872887,1.6661659,120900.0,120890.0,0.32722]
[1755172873957,1.6661659,120900.0,120890.0,0.3293]
[1755172875516,1.6661659,120900.0,120890.0,0.20354]
[1755172875741,1.6661659,120900.0,120890.0,0.3293]
[1755172877569,1.17674402,120900.0,120890.0,0.3293]
[1755172877808,1.17664402,120900.0,120890.0,0.3293]
[1755172878274,1.17664402,120900.0,120890.0,0.20354]
[1755172878484,1.17664402,120900.0,120890.0,0.3293]
[1755172881257,1.17664402,120900.0,120890.0,0.20354]
[1755172881614,1.6660659,120900.0,120890.0,0.3293]
[1755172883014,1.17664402,120900.0,120890.0,0.3293]
[1755172884998,1.17664402,120900.0,120890.0,0.20354]
[1755172885217,1.17664402,120900.0,120890.0,0.3293]
[1755172889401,1.17664402,120900.0,120890.0,0.32926]
[1755172891234,1.17464402,120900.0,120890.0,0.32926]
[1755172891592,1.17564402,120900.0,120890.0,0.32926]
[1755172891799,1.17762402,120900.0,120890.0,0.32926]
[1755172892330,1.17564402,120900.0,120890.0,0.32926]
[1755172893250,1.09292077,120900.0,120890.0,0.20354]
[1755172893756,1.09292077,120900.0,120890.0,0.32926]
[1755172894837,1.09292077,120900.0,120890.0,0.20354]
[1755172895022,1.09292077,120900.0,120890.0,0.32926]
[1755172895601,1.09292077,120900.0,120890.0,0.20354]
[1755172895807,1.09292077,120900.0,120890.0,0.32926]
[1755172898851,1.09292077,120900.0,120890.0,0.32934]
[1755172899490,1.09292077,120900.0,120890.0,0.20354]
[1755172899685,1.09292077,120900.0,120890.0,0.32934]
[1755172901890,1.58234265,120900.0,120890.0,0.32934]
[1755172904372,1.58234265,120900.0,120890.0,0.20354]
[1755172904630,1.58234265,120900.0,120890.0,0.32946]
[1755172905071,1.09292077,120900.0,120890.0,0.32946]
[1755172905523,1.61918995,120900.0,120890.0,0.32946]
[1755172906427,1.12976807,120900.0,120890.0,0.32946]
[1755172906658,1.61918995,120900.0,120890.0,0.32946]
[1755172907343,1.12976807,120900.0,120890.0,0.32946]
[1755172907570,1.61918995,120900.0,120890.0,0.32946]
[1755172910210,1.62116995,120900.0,120890.0,0.32946]
[1755172911281,1.61918995,120900.0,120890.0,0.32946]
[1755172911771,1.61918995,120900.0,120890.0,0.20354]
[1755172912017,1.61918995,120900.0,120890.0,0.32934]
[1755172912241,1.61916383,120900.0,120890.0,0.32934]
[1755172913504,1.12976807,120900.0,120890.0,0.32934]
[1755172913725,1.61916383,120900.0,120890.0,0.32934]
[1755172914368,1.12976807,120900.0,120890.0,0.32934]
[1755172914558,1.58231653,120900.0,120890.0,0.32934]
[1755172919314,1.58231653,120900.0,120890.0,0.20354]
[1755172919526,1.09292077,120900.0,120890.0,0.3293]
[1755172927098,1.09490077,120900.0,120890.0,0.20354]
[1755172927324,1.09490077,120900.0,120890.0,0.32926]
[1755172927554,1.58231653,120900.0,120890.0,0.32926]
[1755172927992,1.09292077,120900.0,120890.0,0.32926]
[1755172928202,1.58231653,120900.0,120890.0,0.32926]
[1755172928418,1.09490077,120900.0,120890.0,0.32926]
[1755172928631,1.58429653,120900.0,120890.0,0.32926]
[1755172928981,1.09490077,120900.0,120890.0,0.32926]
[1755172929199,1.09490077,120900.0,120890.0,0.362186]
[1755172929414,1.09490077,120900.0,120890.0,0.236466]
[1755172929855,1.09490077,120900.0,120890.0,0.362346]
[1755172930086,1.09490077,120900.0,120890.0,0.20354]
[1755172930313,1.19490077,120900.0,120890.0,0.20354]
[1755172930521,1.19490077,120900.0,120890.0,0.32946]
[1755172931697,1.19490077,120900.0,120890.0,0.228344]
[1755172931915,1.19490077,120900.0,120890.0,0.354264]
[1755172932140,1.68429653,120900.0,120890.0,0.228344]
[1755172932354,1.68429653,120900.0,120890.0,0.354264]
[1755172932571,1.68429653,120900.0,120890.0,0.351164]
[1755172933210,1.19490077,120900.0,120890.0,0.351204]
[1755172933428,1.19490077,120900.0,120890.0,0.354264]
[1755172934159,1.19490077,120900.0,120890.0,0.354224]
[1755172935022,1.19490077,120900.0,120890.0,0.228304]
[1755172935262,1.19490077,120900.0,120890.0,0.354264]
[1755172935464,1.19490077,120900.0,120890.0,0.228304]
[1755172935681,1.19490077,120900.0,120890.0,0.354264]
[1755172936034,1.19490077,120900.0,120890.0,0.228304]
[1755172936257,1.19490077,120900.0,120890.0,0.354304]
[1755172937225,1.19292077,120900.0,120890.0,0.354304]
[1755172937435,1.19292077,120900.0,120890.0,0.354344]
[1755172937704,1.19292077,120900.0,120890.0,0.228304]
[1755172937922,1.19490077,120900.0,120890.0,0.354344]
[1755172939298,1.19322077,120900.0,120890.0,0.354344]
[1755172939537,1.18495077,120900.0,120890.0,0.354344]
[1755172942121,1.18495077,120900.0,120890.0,0.228304]
[1755172942671,1.18495077,120900.0,120890.0,0.354464]
[1755172945440,1.18495077,120900.0,120890.0,0.228304]
[1755172945883,1.18495077,120900.0,120890.0,0.354504]
[1755172951881,1.08297077,120900.0,120890.0,0.228304]
[1755172952841,1.08495077,120900.0,120890.0,0.228304]
[1755172953070,1.08495077,120900.0,120890.0,0.351444]
[1755172953754,1.08495077,120900.0,120890.0,0.354504]
[1755172954218,1.08495077,120900.0,120890.0,0.228304]
[1755172954441,1.08495077,120900.0,120890.0,0.354504]
[1755172955492,1.08297077,120900.0,120890.0,0.354504]
[1755172958913,1.08297077,120900.0,120890.0,0.228304]
[1755172959116,1.08297077,120900.0,120890.0,0.354624]
[1755172959342,1.08297077,120900.0,120890.0,0.354704]
[1755172962279,1.08297077,120900.0,120890.0,0.228304]
[1755172962519,1.08297077,120900.0,120890.0,0.354664]
[1755172964291,1.08297077,120900.0,120890.0,0.228304]
[1755172964514,1.08297077,120900.0,120890.0,0.354704]
[1755172965438,1.08297077,120900.0,120890.0,0.228304]
[1755172965714,1.18297077,120900.0,120890.0,0.3775344]
[1755172965956,1.18297077,120900.0,120890.0,0.354704]
[1755172966184,1.08297077,120900.0,120890.0,0.354704]
[1755172966402,1.08297077,120900.0,120890.0,0.228304]
[1755172966632,1.08297077,120900.0,120890.0,0.354664]
[1755172968214,1.08297077,120900.0,120890.0,0.228304]
[1755172968434,1.08297077,120900.0,120890.0,0.354664]
[1755172969198,1.08495077,120900.0,120890.0,0.354664]
[1755172972110,1.08495077,120900.0,120890.0,0.228304]
[1755172972301,1.57721653,120900.0,120890.0,0.32484]
[1755172972829,1.57434653,120900.0,120890.0,0.32484]
[1755172973544,1.57434653,120900.0,120890.0,0.3248]
[1755172974389,1.57434653,120900.0,120890.0,0.19836]
[1755172974518,1.57434653,120900.0,120890.0,0.3248]
[1755172974931,1.58619966,120900.0,120890.0,0.3248]
[1755172975128,1.57450653,120900.0,120890.0,0.20358]
[1755172975338,1.08511077,120900.0,120890.0,0.32496]
[1755172976360,1.08511077,120900.0,120890.0,0.349764]
[1755172976578,1.08511077,120900.0,120890.0,0.223164]
[1755172976803,1.08511077,120900.0,120890.0,0.349724]
[1755172977017,1.08511077,120900.0,120890.0,0.223164]
[1755172977235,1.08511077,120900.0,120890.0,0.349724]
[1755172977454,1.57450653,120900.0,120890.0,0.349724]
[1755172980295,1.08511077,120900.0,120890.0,0.349724]
[1755172980511,1.18511077,120900.0,120890.0,0.349724]
[1755172980758,1.67450653,120900.0,120890.0,0.349644]
[1755172980972,1.67450653,120900.0,120890.0,0.349684]
[1755172981187,1.67450653,120900.0,120890.0,0.223164]
[1755172981404,1.67450653,120900.0,120890.0,0.349684]
[1755172981833,1.18511077,120900.0,120890.0,0.349684]
[1755172982058,1.67450653,120900.0,120890.0,0.223164]
[1755172982491,1.67450653,120900.0,120890.0,0.349804]
[1755172982699,1.18511077,120900.0,120890.0,0.349804]
[1755172982922,1.67450653,120900.0,120890.0,0.349804]
[1755172983275,1.67450653,120900.0,120890.0,0.353054]
[1755172983608,1.18511077,120900.0,120890.0,0.353054]
[1755172983829,1.67450653,120900.0,120890.0,0.353054]